[Event "Paul Keres Memorial Festival 2022"]
[Site "Pärnu, Estonia Resort Hotel & Spa"]
[Date "2022.07.19"]
[Round "2.2"]
[White "Sulskis, Sarunas"]
[Black "Rezniks, Roberts"]
[Result "1-0"]
[TimeControl "60 min for 30 moves + 30 min until game end, from first move every move 30 sec time increment"]
[WhiteTitle "GM"]
[WhiteFideId "12800112"]
[BlackFideId "11624884"]
[WhiteElo "2481"]
[BlackElo "1648"]

1. d4 {[%clk 01:00:55]} {[%emt 00:00:04]} Nf6 {[%clk 00:54:33]} {[%emt
00:06:27]} 2. c4 {[%clk 01:01:07]} {[%emt 00:00:18]} c5 {[%clk 00:54:57]}
{[%emt 00:00:06]} 3. d5 {[%clk 01:00:36]} {[%emt 00:01:00]} b5 {[%clk
00:55:25]} {[%emt 00:00:02]} 4. Qc2 {[%clk 00:59:53]} {[%emt 00:01:13]} d6
{[%clk 00:53:43]} {[%emt 00:02:12]} 5. e4 {[%clk 01:00:02]} {[%emt 00:00:20]}
g6 {[%clk 00:54:08]} {[%emt 00:00:05]} 6. a4 {[%clk 00:51:58]} {[%emt
00:08:34]} b4 {[%clk 00:52:25]} {[%emt 00:02:13]} 7. b3 {[%clk 00:37:51]}
{[%emt 00:14:37]} Bg7 {[%clk 00:51:32]} {[%emt 00:01:23]} 8. Bb2 {[%clk
00:38:08]} {[%emt 00:00:13]} Nbd7 {[%clk 00:47:21]} {[%emt 00:04:42]} 9. Nd2
{[%clk 00:37:41]} {[%emt 00:00:56]} Qc7 {[%clk 00:46:42]} {[%emt 00:01:10]} 10.
g3 {[%clk 00:36:22]} {[%emt 00:01:49]} Bb7 {[%clk 00:43:21]} {[%emt 00:03:51]}
11. Ngf3 {[%clk 00:35:21]} {[%emt 00:01:31]} O-O-O {[%clk 00:37:44]} {[%emt
00:06:07]} 12. Bh3 {[%clk 00:33:47]} {[%emt 00:02:04]} Kb8 {[%clk 00:37:56]}
{[%emt 00:00:19]} 13. O-O {[%clk 00:33:51]} {[%emt 00:00:25]} h6 {[%clk
00:35:03]} {[%emt 00:03:23]} 14. Rae1 {[%clk 00:32:25]} {[%emt 00:01:57]} Rde8
{[%clk 00:29:47]} {[%emt 00:05:46]} 15. e5 {[%clk 00:26:05]} {[%emt 00:06:49]}
Nh5 {[%clk 00:27:43]} {[%emt 00:02:34]} 16. exd6 {[%clk 00:21:17]} {[%emt
00:05:19]} exd6 {[%clk 00:28:00]} {[%emt 00:00:13]} 17. Bxg7 {[%clk 00:20:26]}
{[%emt 00:01:21]} Nxg7 {[%clk 00:28:27]} {[%emt 00:00:03]} 18. Qb2 {[%clk
00:20:23]} {[%emt 00:00:32]} Nh5 {[%clk 00:27:31]} {[%emt 00:01:26]} 19. Re7
{[%clk 00:17:53]} {[%emt 00:03:01]} Rxe7 {[%clk 00:22:46]} {[%emt 00:05:15]} 20.
Qxh8+ {[%clk 00:18:14]} {[%emt 00:00:09]} Bc8 {[%clk 00:23:15]} {[%emt
00:00:01]} 21. Qxh6 {[%clk 00:17:24]} {[%emt 00:01:19]} Ne5 {[%clk 00:21:54]}
{[%emt 00:01:51]} 22. Nxe5 {[%clk 00:13:35]} {[%emt 00:04:20]} Rxe5 {[%clk
00:21:19]} {[%emt 00:01:05]} 23. Bxc8 {[%clk 00:13:13]} {[%emt 00:00:52]} Qxc8
{[%clk 00:20:48]} {[%emt 00:01:02]} 24. Nf3 {[%clk 00:12:32]} {[%emt 00:01:10]}
Re2 {[%clk 00:19:39]} {[%emt 00:01:40]} 25. Re1 {[%clk 00:11:28]} {[%emt
00:01:34]} Rxe1+ {[%clk 00:15:38]} {[%emt 00:04:31]} 26. Nxe1 {[%clk 00:11:51]}
{[%emt 00:00:06]} Qe8 {[%clk 00:16:06]} {[%emt 00:00:02]} 27. Nf3 {[%clk
00:10:11]} {[%emt 00:02:10]} Nf6 {[%clk 00:16:34]} {[%emt 00:00:02]} 28. Qf4
{[%clk 00:08:01]} {[%emt 00:02:39]} Qe7 {[%clk 00:14:51]} {[%emt 00:02:13]} 29.
Kg2 {[%clk 00:07:44]} {[%emt 00:00:47]} Kc7 {[%clk 00:15:04]} {[%emt 00:00:17]}
30. Ng5 {[%clk 00:33:40]} {[%emt 00:04:35]} Kd7 {[%clk 00:42:10]} {[%emt
00:03:25]} 31. g4 {[%clk 00:31:38]} {[%emt 00:02:31]} Ke8 {[%clk 00:42:20]}
{[%emt 00:00:19]} 32. h3 {[%clk 00:31:19]} {[%emt 00:00:50]} Nd7 {[%clk
00:41:54]} {[%emt 00:00:56]} 33. Ne4 {[%clk 00:23:59]} {[%emt 00:07:50]} Ne5
{[%clk 00:41:52]} {[%emt 00:00:32]} 34. h4 {[%clk 00:19:16]} {[%emt 00:05:13]}
Nd3 {[%clk 00:30:56]} {[%emt 00:11:26]} 35. Qe3 {[%clk 00:17:23]} {[%emt
00:02:23]} Ne5 {[%clk 00:31:11]} {[%emt 00:00:16]} 36. Nxd6+ {[%clk 00:17:00]}
{[%emt 00:00:53]} Kd7 {[%clk 00:30:19]} {[%emt 00:01:21]} 37. Nb7 {[%clk
00:15:29]} {[%emt 00:02:01]} Nxg4 {[%clk 00:27:28]} {[%emt 00:03:21]} 38. Nxc5+
{[%clk 00:15:32]} {[%emt 00:00:27]} Kd8 {[%clk 00:27:44]} {[%emt 00:00:14]} 39.
Qxe7+ {[%clk 00:12:51]} {[%emt 00:03:12]} Kxe7 {[%clk 00:28:13]} {[%emt
00:00:02]} 40. Na6 {[%clk 00:13:00]} {[%emt 00:00:21]} Ne5 {[%clk 00:27:51]}
{[%emt 00:00:51]} 41. Nxb4 {[%clk 00:12:47]} {[%emt 00:00:44]} 1-0

[Event "Paul Keres Memorial Festival 2022"]
[Site "Pärnu, Estonia Resort Hotel & Spa"]
[Date "2022.07.19"]
[Round "2.3"]
[White "Rondo, Mikko"]
[Black "Maiorov, Nikita"]
[Result "0-1"]
[TimeControl "60 min for 30 moves + 30 min until game end, from first move every move 30 sec time increment"]
[BlackTitle "GM"]
[WhiteFideId "4509633"]
[BlackFideId "13501720"]
[WhiteElo "1579"]
[BlackElo "2474"]

1. Nf3 {[%clk 01:00:57]} {[%emt 00:00:03]} d5 {[%clk 01:00:48]} {[%emt
00:00:12]} 2. g3 {[%clk 01:01:18]} {[%emt 00:00:09]} Nf6 {[%clk 01:00:48]}
{[%emt 00:00:30]} 3. Bg2 {[%clk 01:01:27]} {[%emt 00:00:20]} e6 {[%clk
01:01:04]} {[%emt 00:00:15]} 4. O-O {[%clk 01:01:07]} {[%emt 00:00:51]} c5
{[%clk 01:01:19]} {[%emt 00:00:14]} 5. d3 {[%clk 01:01:28]} {[%emt 00:00:09]}
Nc6 {[%clk 01:01:43]} {[%emt 00:00:06]} 6. Nbd2 {[%clk 01:01:37]} {[%emt
00:00:21]} Be7 {[%clk 01:02:01]} {[%emt 00:00:13]} 7. e4 {[%clk 01:01:15]}
{[%emt 00:00:52]} O-O {[%clk 01:02:12]} {[%emt 00:00:19]} 8. Re1 {[%clk
01:01:17]} {[%emt 00:00:28]} b5 {[%clk 01:02:25]} {[%emt 00:00:17]} 9. exd5
{[%clk 00:56:54]} {[%emt 00:04:53]} Nxd5 {[%clk 00:57:28]} {[%emt 00:05:27]} 10.
c4 {[%clk 00:48:51]} {[%emt 00:08:33]} bxc4 {[%clk 00:56:51]} {[%emt 00:01:07]}
11. dxc4 {[%clk 00:47:36]} {[%emt 00:01:45]} Nb6 {[%clk 00:56:51]} {[%emt
00:00:29]} 12. Ne5 {[%clk 00:45:09]} {[%emt 00:02:56]} Nxe5 {[%clk 00:56:58]}
{[%emt 00:00:23]} 13. Rxe5 {[%clk 00:45:23]} {[%emt 00:00:17]} Rb8 {[%clk
00:56:20]} {[%emt 00:01:08]} 14. Qc2 {[%clk 00:44:40]} {[%emt 00:01:13]} Ba6
{[%clk 00:48:58]} {[%emt 00:07:52]} 15. Rb1 {[%clk 00:42:33]} {[%emt 00:02:37]}
Qd7 {[%clk 00:48:33]} {[%emt 00:00:55]} 16. b3 {[%clk 00:42:05]} {[%emt
00:00:58]} Rfd8 {[%clk 00:48:58]} {[%emt 00:00:05]} 17. Re1 {[%clk 00:37:22]}
{[%emt 00:05:13]} Qd3 {[%clk 00:48:34]} {[%emt 00:00:54]} 18. Be4 {[%clk
00:36:02]} {[%emt 00:01:49]} Qxc2 {[%clk 00:48:50]} {[%emt 00:00:14]} 19. Bxc2
{[%clk 00:36:30]} {[%emt 00:00:02]} Nd7 {[%clk 00:47:36]} {[%emt 00:01:44]} 20.
Ne4 {[%clk 00:36:21]} {[%emt 00:00:40]} Ne5 {[%clk 00:46:09]} {[%emt 00:01:56]}
21. Ng5 {[%clk 00:32:28]} {[%emt 00:04:24]} Nd3 {[%clk 00:45:18]} {[%emt
00:01:21]} 22. Bxd3 {[%clk 00:31:58]} {[%emt 00:01:00]} Rxd3 {[%clk 00:45:42]}
{[%emt 00:00:06]} 23. Be3 {[%clk 00:22:34]} {[%emt 00:09:53]} Rxe3 {[%clk
00:43:50]} {[%emt 00:02:22]} 24. fxe3 {[%clk 00:22:56]} {[%emt 00:00:09]} Bxg5
{[%clk 00:44:16]} {[%emt 00:00:04]} 25. Rbd1 {[%clk 00:23:18]} {[%emt
00:00:09]} Bc8 {[%clk 00:25:00]} {[%emt 00:19:46]} 26. Rd6 {[%clk 00:23:03]}
{[%emt 00:00:45]} Kf8 {[%clk 00:25:01]} {[%emt 00:00:29]} 27. Rc6 {[%clk
00:22:30]} {[%emt 00:01:03]} Be7 {[%clk 00:19:09]} {[%emt 00:06:22]} 28. Rd1
{[%clk 00:21:39]} {[%emt 00:01:21]} Ke8 {[%clk 00:19:17]} {[%emt 00:00:21]} 29.
Rc7 {[%clk 00:21:33]} {[%emt 00:00:37]} a6 {[%clk 00:19:26]} {[%emt 00:00:22]}
30. Kf2 {[%clk 00:51:14]} {[%emt 00:00:48]} g6 {[%clk 00:47:52]} {[%emt
00:02:04]} 31. h3 {[%clk 00:50:45]} {[%emt 00:00:58]} h6 {[%clk 00:47:48]}
{[%emt 00:00:34]} 32. Rd2 {[%clk 00:50:36]} {[%emt 00:00:40]} Bd8 {[%clk
00:44:41]} {[%emt 00:03:37]} 33. Rxc5 {[%clk 00:49:47]} {[%emt 00:01:19]} Bb7
{[%clk 00:44:41]} {[%emt 00:00:29]} 34. b4 {[%clk 00:47:25]} {[%emt 00:02:52]}
Bb6 {[%clk 00:42:45]} {[%emt 00:02:26]} 35. Re5 {[%clk 00:47:11]} {[%emt
00:00:44]} Ke7 {[%clk 00:42:58]} {[%emt 00:00:17]} 36. a4 {[%clk 00:46:44]}
{[%emt 00:00:58]} Bc7 {[%clk 00:42:05]} {[%emt 00:01:23]} 37. Rc5 {[%clk
00:46:59]} {[%emt 00:00:15]} Bd6 {[%clk 00:42:19]} {[%emt 00:00:16]} 38. Rxd6
{[%clk 00:46:58]} {[%emt 00:00:32]} Kxd6 {[%clk 00:42:45]} {[%emt 00:00:04]} 39.
Ra5 {[%clk 00:47:10]} {[%emt 00:00:18]} Kc7 {[%clk 00:40:51]} {[%emt 00:02:24]}
40. Rc5+ {[%clk 00:47:32]} {[%emt 00:00:08]} Kd7 {[%clk 00:41:17]} {[%emt
00:00:04]} 41. Ra5 {[%clk 00:47:13]} {[%emt 00:00:49]} Rc8 {[%clk 00:41:40]}
{[%emt 00:00:07]} 42. b5 {[%clk 00:47:24]} {[%emt 00:00:19]} Rc5 {[%clk
00:40:14]} 0-1

[Event "Paul Keres Memorial Festival 2022"]
[Site "Pärnu, Estonia Resort Hotel & Spa"]
[Date "2022.07.19"]
[Round "2.4"]
[White "Smirnov, Artem"]
[Black "Poltan, Jüri"]
[Result "1-0"]
[TimeControl "60 min for 30 moves + 30 min until game end, from first move every move 30 sec time increment"]
[WhiteTitle "IM"]
[WhiteFideId "4143256"]
[BlackFideId "4513813"]
[WhiteElo "2419"]
[BlackElo "1613"]

1. d4 {[%clk 01:00:55]} {[%emt 00:00:04]} d5 {[%clk 01:00:21]} {[%emt
00:00:39]} 2. c4 {[%clk 01:01:20]} {[%emt 00:00:06]} e6 {[%clk 00:59:59]}
{[%emt 00:00:52]} 3. Nc3 {[%clk 01:01:43]} {[%emt 00:00:07]} Nf6 {[%clk
00:59:56]} {[%emt 00:00:33]} 4. cxd5 {[%clk 01:02:07]} {[%emt 00:00:07]} exd5
{[%clk 01:00:05]} {[%emt 00:00:20]} 5. Bg5 {[%clk 01:02:33]} {[%emt 00:00:05]}
Be7 {[%clk 00:58:38]} {[%emt 00:01:58]} 6. e3 {[%clk 01:02:56]} {[%emt
00:00:07]} O-O {[%clk 00:58:38]} {[%emt 00:00:30]} 7. Bd3 {[%clk 01:03:21]}
{[%emt 00:00:05]} c6 {[%clk 00:53:48]} {[%emt 00:05:20]} 8. Nge2 {[%clk
01:03:42]} {[%emt 00:00:09]} Bg4 {[%clk 00:51:31]} {[%emt 00:02:47]} 9. f3
{[%clk 00:52:40]} {[%emt 00:11:32]} Be6 {[%clk 00:41:25]} {[%emt 00:10:35]} 10.
O-O {[%clk 00:51:46]} {[%emt 00:01:25]} c5 {[%clk 00:35:26]} {[%emt 00:06:29]}
11. Rc1 {[%clk 00:44:29]} {[%emt 00:07:47]} b6 {[%clk 00:28:07]} {[%emt
00:07:49]} 12. Kh1 {[%clk 00:36:19]} {[%emt 00:08:40]} a6 {[%clk 00:23:28]}
{[%emt 00:05:09]} 13. Nf4 {[%clk 00:33:35]} {[%emt 00:03:13]} Qd6 {[%clk
00:19:17]} {[%emt 00:04:41]} 14. dxc5 {[%clk 00:25:36]} {[%emt 00:08:30]} bxc5
{[%clk 00:18:09]} {[%emt 00:01:37]} 15. Bxf6 {[%clk 00:25:35]} {[%emt
00:00:31]} Bxf6 {[%clk 00:17:45]} {[%emt 00:00:54]} 16. Nfxd5 {[%clk 00:24:18]}
{[%emt 00:01:47]} Bxd5 {[%clk 00:10:05]} {[%emt 00:08:09]} 17. Nxd5 {[%clk
00:24:41]} {[%emt 00:00:08]} Rd8 {[%clk 00:10:13]} {[%emt 00:00:21]} 18. Be4
{[%clk 00:20:28]} {[%emt 00:04:44]} Ra7 {[%clk 00:09:16]} {[%emt 00:01:27]} 19.
Qc2 {[%clk 00:17:43]} {[%emt 00:03:14]} Nd7 {[%clk 00:08:38]} {[%emt 00:01:08]}
20. Bxh7+ {[%emt 00:03:01]} 1-0

[Event "Paul Keres Memorial Festival 2022"]
[Site "Pärnu, Estonia Resort Hotel & Spa"]
[Date "2022.07.19"]
[Round "2.5"]
[White "Valdats, Reinis"]
[Black "Chukavin, Kirill"]
[Result "0-1"]
[TimeControl "60 min for 30 moves + 30 min until game end, from first move every move 30 sec time increment"]
[BlackTitle "FM"]
[WhiteFideId "11617578"]
[BlackFideId "4503023"]
[WhiteElo "1514"]
[BlackElo "2418"]

1. e4 {[%clk 01:00:59]} c5 {[%clk 00:50:59]} {[%emt 00:10:00]} 2. Nf3 {[%clk
01:01:17]} {[%emt 00:00:12]} Nc6 {[%clk 00:51:21]} {[%emt 00:00:08]} 3. d4
{[%clk 01:01:34]} {[%emt 00:00:14]} cxd4 {[%clk 00:51:45]} {[%emt 00:00:06]} 4.
Nxd4 {[%clk 01:01:56]} {[%emt 00:00:06]} Qb6 {[%clk 00:52:09]} {[%emt
00:00:06]} 5. Nb3 {[%clk 00:58:32]} {[%emt 00:03:54]} Nf6 {[%clk 00:52:33]}
{[%emt 00:00:06]} 6. Nc3 {[%clk 00:58:32]} {[%emt 00:00:31]} e6 {[%clk
00:52:46]} {[%emt 00:00:17]} 7. Be3 {[%clk 00:58:25]} {[%emt 00:00:37]} Qc7
{[%clk 00:53:07]} {[%emt 00:00:09]} 8. a3 {[%clk 00:51:38]} {[%emt 00:07:18]}
a6 {[%clk 00:53:14]} {[%emt 00:00:21]} 9. Be2 {[%clk 00:50:11]} {[%emt
00:01:57]} Be7 {[%clk 00:53:11]} {[%emt 00:00:33]} 10. O-O {[%clk 00:50:09]}
{[%emt 00:00:33]} b5 {[%clk 00:53:09]} {[%emt 00:00:32]} 11. f4 {[%clk
00:40:10]} {[%emt 00:10:29]} d6 {[%clk 00:53:25]} {[%emt 00:00:14]} 12. Bf3
{[%clk 00:39:52]} {[%emt 00:00:48]} Bb7 {[%clk 00:53:44]} {[%emt 00:00:11]} 13.
Qe1 {[%clk 00:33:25]} {[%emt 00:06:57]} O-O {[%clk 00:53:46]} {[%emt 00:00:29]}
14. Qg3 {[%clk 00:32:39]} {[%emt 00:01:16]} Nd7 {[%clk 00:43:32]} {[%emt
00:10:43]} 15. Rad1 {[%clk 00:26:39]} {[%emt 00:06:30]} Bf6 {[%clk 00:35:20]}
{[%emt 00:08:43]} 16. e5 {[%clk 00:19:30]} {[%emt 00:07:39]} dxe5 {[%clk
00:32:15]} {[%emt 00:03:34]} 17. Rxd7 {[%clk 00:19:30]} {[%emt 00:00:31]} Qxd7
{[%clk 00:31:54]} {[%emt 00:00:50]} 18. Nc5 {[%clk 00:19:47]} {[%emt 00:00:13]}
exf4 {[%clk 00:13:51]} {[%emt 00:18:33]} 19. Qxf4 {[%clk 00:15:22]} {[%emt
00:04:54]} Qe7 {[%clk 00:14:06]} {[%emt 00:00:14]} 20. Nxb7 {[%clk 00:07:47]}
{[%emt 00:08:06]} Qxb7 {[%clk 00:14:03]} {[%emt 00:00:32]} 21. Ne4 {[%clk
00:06:46]} {[%emt 00:01:30]} Be5 {[%clk 00:11:28]} {[%emt 00:03:06]} 22. Qh4
{[%clk 00:06:04]} {[%emt 00:01:10]} Qe7 {[%clk 00:10:31]} {[%emt 00:01:28]} 23.
Ng5 {[%clk 00:03:51]} {[%emt 00:02:43]} h6 {[%clk 00:10:49]} {[%emt 00:00:13]}
24. Be4 {[%clk 00:03:13]} {[%emt 00:01:07]} f5 {[%clk 00:08:15]} {[%emt
00:03:05]} 25. Bxc6 {[%clk 00:03:19]} {[%emt 00:00:24]} hxg5 {[%clk 00:08:19]}
{[%emt 00:00:26]} 26. Qh5 {[%clk 00:01:24]} {[%emt 00:02:26]} Rac8 {[%clk
00:07:49]} {[%emt 00:00:59]} 27. Bf3 {[%clk 00:01:02]} {[%emt 00:00:52]} Rxc2
{[%clk 00:05:42]} {[%emt 00:02:36]} 28. Bxg5 {[%clk 00:01:04]} {[%emt
00:00:27]} Bf6 {[%clk 00:05:40]} {[%emt 00:00:32]} 29. Be3 {[%clk 00:00:56]}
{[%emt 00:00:39]} Rxb2 {[%clk 00:04:56]} {[%emt 00:01:13]} 30. h3 {[%clk
00:30:39]} {[%emt 00:00:47]} Rb3 {[%clk 00:34:14]} {[%emt 00:01:12]} 31. Bf2
{[%clk 00:27:04]} {[%emt 00:04:06]} Rxa3 {[%clk 00:33:27]} {[%emt 00:01:16]} 32.
Re1 {[%clk 00:26:48]} {[%emt 00:00:46]} Ra1 {[%clk 00:32:55]} {[%emt 00:01:02]}
33. Rxa1 {[%clk 00:24:43]} {[%emt 00:02:35]} Bxa1 {[%clk 00:33:19]} {[%emt
00:00:07]} 34. Qg6 {[%clk 00:21:19]} {[%emt 00:03:53]} Qf6 {[%clk 00:33:21]}
{[%emt 00:00:29]} 0-1

[Event "Paul Keres Memorial Festival 2022"]
[Site "Pärnu, Estonia Resort Hotel & Spa"]
[Date "2022.07.19"]
[Round "2.6"]
[White "Olde, Margareth"]
[Black "Paikens, Reinis"]
[Result "1-0"]
[TimeControl "60 min for 30 moves + 30 min until game end, from first move every move 30 sec time increment"]
[WhiteTitle "WIM"]
[WhiteFideId "4503082"]
[BlackFideId "11624078"]
[WhiteElo "2235"]
[BlackElo "1567"]

1. c4 {[%clk 01:00:56]} {[%emt 00:00:04]} c5 {[%clk 01:00:50]} {[%emt
00:00:09]} 2. Nf3 {[%clk 01:01:14]} {[%emt 00:00:13]} Nc6 {[%clk 01:01:14]}
{[%emt 00:00:06]} 3. d4 {[%clk 01:01:39]} {[%emt 00:00:05]} cxd4 {[%clk
01:01:16]} {[%emt 00:00:28]} 4. Nxd4 {[%clk 01:02:05]} {[%emt 00:00:04]} Nf6
{[%clk 01:00:32]} {[%emt 00:01:14]} 5. Nc3 {[%clk 01:02:16]} {[%emt 00:00:19]}
d6 {[%clk 01:00:34]} {[%emt 00:00:27]} 6. e4 {[%clk 01:01:56]} {[%emt
00:00:51]} e5 {[%clk 01:00:06]} {[%emt 00:00:59]} 7. Nc2 {[%clk 00:59:20]}
{[%emt 00:03:05]} Be6 {[%clk 01:00:00]} {[%emt 00:00:36]} 8. Be2 {[%clk
00:58:55]} {[%emt 00:00:54]} Be7 {[%clk 01:00:01]} {[%emt 00:00:29]} 9. O-O
{[%clk 00:58:33]} {[%emt 00:00:51]} O-O {[%clk 00:59:56]} {[%emt 00:00:35]} 10.
b3 {[%clk 00:55:55]} {[%emt 00:03:09]} Rc8 {[%clk 00:57:14]} {[%emt 00:03:12]}
11. Qd2 {[%clk 00:54:55]} {[%emt 00:01:29]} Qd7 {[%clk 00:54:45]} {[%emt
00:03:01]} 12. Rd1 {[%clk 00:54:59]} {[%emt 00:00:26]} Rfd8 {[%clk 00:54:36]}
{[%emt 00:00:38]} 13. Ba3 {[%clk 00:54:39]} {[%emt 00:00:51]} a6 {[%clk
00:54:29]} {[%emt 00:00:37]} 14. f3 {[%clk 00:54:23]} {[%emt 00:00:46]} h6
{[%clk 00:51:10]} {[%emt 00:03:50]} 15. Nd5 {[%clk 00:49:48]} {[%emt 00:05:04]}
Bxd5 {[%clk 00:50:52]} {[%emt 00:00:48]} 16. cxd5 {[%clk 00:50:01]} {[%emt
00:00:16]} Na7 {[%clk 00:50:51]} {[%emt 00:00:30]} 17. Bb4 {[%clk 00:49:53]}
{[%emt 00:00:38]} Nh5 {[%clk 00:42:57]} {[%emt 00:08:24]} 18. g3 {[%clk
00:46:38]} {[%emt 00:03:45]} Bg5 {[%clk 00:41:12]} {[%emt 00:02:17]} 19. f4
{[%clk 00:39:45]} {[%emt 00:07:23]} Nxf4 {[%clk 00:34:01]} {[%emt 00:07:41]} 20.
gxf4 {[%clk 00:40:06]} {[%emt 00:00:09]} Bxf4 {[%clk 00:34:23]} {[%emt
00:00:08]} 21. Qd3 {[%clk 00:39:11]} {[%emt 00:01:24]} Qc7 {[%clk 00:32:37]}
{[%emt 00:02:17]} 22. Ne3 {[%clk 00:35:35]} {[%emt 00:04:05]} Qb6 {[%clk
00:32:45]} {[%emt 00:00:23]} 23. Bd2 {[%clk 00:35:54]} {[%emt 00:00:11]} Nb5
{[%clk 00:33:12]} {[%emt 00:00:03]} 24. Kh1 {[%clk 00:35:27]} {[%emt 00:00:57]}
Nc3 {[%clk 00:21:20]} {[%emt 00:12:22]} 25. Bxc3 {[%clk 00:32:57]} {[%emt
00:03:00]} Bxe3 {[%clk 00:21:37]} {[%emt 00:00:12]} 26. Bg4 {[%clk 00:30:47]}
{[%emt 00:02:39]} Rc7 {[%clk 00:19:46]} {[%emt 00:02:21]} 27. Re1 {[%clk
00:27:44]} {[%emt 00:03:33]} Bf4 {[%clk 00:15:58]} {[%emt 00:04:19]} 28. Bd2
{[%clk 00:27:25]} {[%emt 00:00:48]} Qf2 {[%clk 00:16:23]} {[%emt 00:00:05]} 29.
Bxf4 {[%clk 00:26:36]} {[%emt 00:01:20]} Qxf4 {[%clk 00:15:47]} {[%emt
00:01:05]} 30. Rg1 {[%clk 00:56:55]} {[%emt 00:00:12]} g6 {[%clk 00:44:32]}
{[%emt 00:01:46]} 31. Raf1 {[%clk 00:53:17]} {[%emt 00:04:08]} Qg5 {[%clk
00:44:50]} {[%emt 00:00:10]} 32. Qf3 {[%clk 00:47:05]} {[%emt 00:06:43]} Kg7
{[%clk 00:42:40]} {[%emt 00:02:40]} 33. Bf5 {[%clk 00:43:56]} {[%emt 00:03:39]}
Qh4 {[%clk 00:42:39]} {[%emt 00:00:31]} 34. Rg4 {[%clk 00:40:17]} {[%emt
00:04:09]} Qf6 {[%clk 00:42:46]} {[%emt 00:00:24]} 35. Qg2 {[%clk 00:39:54]}
{[%emt 00:00:52]} g5 {[%clk 00:41:36]} {[%emt 00:01:40]} 36. h4 {[%clk
00:39:48]} {[%emt 00:00:37]} Kf8 {[%clk 00:41:40]} {[%emt 00:00:26]} 37. Kg1
{[%clk 00:36:40]} {[%emt 00:03:37]} Qh8 {[%clk 00:40:22]} {[%emt 00:01:48]} 38.
hxg5 {[%clk 00:36:31]} {[%emt 00:00:39]} hxg5 {[%clk 00:40:31]} {[%emt
00:00:21]} 39. Rxg5 {[%clk 00:36:49]} {[%emt 00:00:13]} Ke7 {[%clk 00:40:16]}
{[%emt 00:00:44]} 40. Rg7 {[%clk 00:36:08]} {[%emt 00:01:06]} Rf8 {[%clk
00:40:27]} {[%emt 00:00:24]} 41. Be6 {[%clk 00:30:59]} {[%emt 00:05:39]} Ke8
{[%clk 00:40:26]} {[%emt 00:00:30]} 42. Bxf7+ {[%clk 00:30:58]} {[%emt
00:00:32]} Kd8 {[%clk 00:40:44]} {[%emt 00:00:11]} 43. Qg5+ {[%clk 00:30:07]}
{[%emt 00:01:21]} Re7 {[%clk 00:40:55]} {[%emt 00:00:19]} 44. Rf6 {[%clk
00:26:30]} {[%emt 00:04:05]} Kc7 {[%clk 00:38:31]} {[%emt 00:02:55]} 45. Rh6
{[%clk 00:26:24]} {[%emt 00:00:36]} Rfxf7 {[%clk 00:38:12]} {[%emt 00:00:50]}
46. Qxe7+ {[%clk 00:26:25]} {[%emt 00:00:30]} 1-0